Cogmind - Beta 9.6 @@@ ROGUE MODE // 2020.06.02 @ 09:40:00 Player: Storyteller Result: Destroyed by G-47 Trooper with Particle Gun Performance ------------- Evolutions (0) 0 Regions Visited (1) 200 Robots Destroyed (14) 70 Value Destroyed (382) 382 Prototype IDs (0) 0 Alien Tech Used (0) 0 Bonus (0) 0 TOTAL SCORE: 652 Bonus ------- None Cogmind --------- Core Integrity 0/250 Matter 400/450 Energy 250/250 System Corruption 0% Temperature Cool (12) Movement Walking (120) Location -10/Materials Parts ------- > --- POWER (1) -------- Ion Engine > --- PROPULSION (2) --- Aluminum Leg Aluminum Leg > --- UTILITY (2) ------ Medium Storage Unit Large Matter Pod > --- WEAPON (2) ------- Light Cannon > --- INVENTORY (8) ---- Light Ion Engine Aluminum Leg Aluminum Leg Medium Storage Unit Peak State ------------ > --- POWER ------------ Ion Engine > --- PROPULSION ------- Aluminum Leg Aluminum Leg > --- UTILITY ---------- Small Storage Unit Medium Storage Unit > --- WEAPON ----------- Small Laser Assault Rifle > --- INVENTORY -------- Light Ion Engine Light Treads Aluminum Leg Wheel Wheel Small Laser [Rating: 7] Favorites ----------- Power Light Ion Engine Engine Light Ion Engine Propulsion Aluminum Leg Leg Aluminum Leg Utility Small Storage Unit Storage Small Storage Unit Weapon Assault Rifle Energy Gun Small Laser Ballistic Gun Assault Rifle Ballistic Cannon Light Cannon Build | -11 -10 ------- Run | Scr Mat Slots Evolved . | . . Power . | . . Propulsion . | . . Utility . | . . Weapon . | . . Parts Attached 19 | 6 13 Power 3 | 1 2 Engine 3 | 1 2 Core . | . . Reactor . | . . Propulsion 6 | 2 4 Treads . | . . Leg 6 | 2 4 Wheel . | . . Hover . | . . Flight . | . . Utility 3 | 1 2 Device . | . . Storage 3 | 1 2 Processor . | . . Hackware . | . . Protection . | . . Artifact . | . . Weapon 7 | 2 5 Energy Gun 4 | 1 3 Energy Cannon . | . . Ballistic Gun 2 | 1 1 Ballistic Cannon 1 | . 1 Launcher . | . . Special Weapon . | . . Impact Weapon . | . . Slashing Weapon . | . . Piercing Weapon . | . . Special Melee Weapon . | . . Unidentified Prototypes . | . . Parts Lost 9 | . 9 Power 1 | . 1 Propulsion 3 | . 3 Utility . | . . Weapon 5 | . 5 Highest Loss Streak 5 | . 5 Average Slot Usage (%) 84 | . 84 Engine 13 | . 13 Leg 26 | . 26 Storage 16 | . 16 Energy Gun 8 | . 8 Ballistic Gun 14 | . 14 Ballistic Cannon 2 | . 2 Naked Turns . | . . Heaviest Build 19 | 11 19 Greatest Support 20 | 20 20 Greatest Overweight (x) 1 | . 1 Average Overweight (x) . | . . Largest Inventory Capacity 10 | 6 10 Average Capacity 6 | 5 6 Most Carried 8 | 6 8 Average Carried 5 | 3 5 Final Capacity 8 | 6 8 Final Carried 6 | 6 4 Class Distribution -------------------- 100% | Mutant Dominant Class ---------------- Mutant | -10/Materials Resources | -11 -10 ----------- Run | Scr Mat Matter Collected 680 | 204 476 Remotely . | . . Salvage Created 470 | . 470 Parts 28 | . 28 Haulers Intercepted . | . . Recyclers Shooed 1 | . 1 Parts Field Recycled . | . . Retrieved Matter . | . . Parts Self-Destructed . | . . Prevented . | . . Kills | -11 -10 ------- Run | Scr Mat Combat Hostiles Destroyed 11 | . 11 Guns 8 | . 8 Cannons 2 | . 2 AOE 1 | . 1 Classes Destroyed 5 | . 5 Worker 1 | . 1 Recycler 1 | . 1 Watcher 1 | . 1 Swarmer 2 | . 2 Grunt 9 | . 9 Best Kill Streak 5 | . 5 Combat Bots Only 4 | . 4 Max Kills in Single Turn 4 | . 4 Gunslinging . | . . Exploded 1 | . 1 Melee . | . . Uniques/NPCs Destroyed . | . . Combat | -11 -10 -------- Run | Scr Mat Damage Taken 1132 | . 1132 Core 254 | . 254 Absorbed by Shields . | . . Core Remaining (%) 100 | 100 . Volleys Fired 58 | . 58 Largest 2 | . 2 Hottest 75 | . 75 Shots Fired 90 | . 90 Gun 68 | . 68 Cannon 22 | . 22 Launcher . | . . Special . | . . Kinetic 71 | . 71 Thermal 18 | . 18 Explosive . | . . Electromagnetic 1 | . 1 Robot Hit Streak 11 | . 11 Robot Miss Streak 4 | . 4 Penetration Max . | . . Secondary Targets 1 | . 1 Max Gunslinging Chain 1 | . 1 Shots Hit Robots 56 | . 56 Core Hits 28 | . 28 Critical Hits 1 | . 1 Critical Kills 1 | . 1 Critical Parts Destroyed . | . . Melee Attacks . | . . Impact . | . . Slashing . | . . Piercing . | . . Sneak Attacks . | . . Combat Hostiles . | . . Follow-up Attacks . | . . Damage Inflicted 1049 | . 1049 Guns 518 | . 518 Cannons 230 | . 230 Explosions 301 | . 301 Melee . | . . Ramming . | . . Kinetic 585 | . 585 Thermal 227 | . 227 Explosive . | . . Electromagnetic 237 | . 237 Impact . | . . Slashing . | . . Piercing . | . . Highest Corruption . | . . Average Corruption . | . . Corruption Purged . | . . Overload Shots . | . . Overflow Damage 10 | . 10 Projectiles 10 | . 10 Explosions . | . . Melee . | . . Knockbacks 1 | . 1 Impact . | . . Kinetic 1 | . 1 Secondary . | . . Self-Inflicted Damage 38 | . 38 Shots 2 | . 2 Rammed . | . . Targets Rammed . | . . Kicked . | . . Crushed . | . . Highest Temperature 77 | . 77 Average Temperature 25 | . 25 Received Heat Transfer 501 | . 501 Siege Activations . | . . Robots Corrupted . | . . Combat Hostiles . | . . Parts Fried . | . . Impact Corruptions . | . . Robots Melted . | . . Combat Hostiles . | . . Parts Melted . | . . Heat Transferred 475 | . 475 Parts Sabotaged . | . . Parts Stolen . | . . Parts Stripped . | . . Power Chain Reactions 1 | . 1 Missiles Intercepted . | . . Alert | -11 -10 ------- Run | Scr Mat Peak Influence 185 | . 185 Average Influence 49 | . 56 Maximum Alert Level . | . . Low Security (%) 100 | 100 100 Level 1 . | . . Level 2 . | . . Level 3 . | . . Level 4 . | . . Level 5 . | . . High Security . | . . Max Security . | . . Squads Dispatched 3 | . 3 Investigation . | . . Extermination . | . . Reinforcement 3 | . 3 Assault . | . . Garrison . | . . Intercept . | . . Construction Impeded . | . . Haulers Reinforced . | . . Stealth | -11 -10 --------- Run | Scr Mat Distress Signals 3 | . 3 Communications Jammed . | . . Distress Signals . | . . Times Spotted 22 | . 22 Peak Tracking Total 6 | . 6 Tactical Retreats . | . . Traps | -11 -10 ------- Run | Scr Mat Traps Triggered 1 | . 1 Indirectly . | . . Trap Hack Attempts . | . . Triggered . | . . Disarmed . | . . Reprogrammed . | . . Reused . | . . Traps Extracted . | . . Installed . | . . Triggered . | . . Machines | -11 -10 ---------- Run | Scr Mat Machines Disabled 2 | . 2 Max in Single Turn 2 | . 2 Machines Sabotaged . | . . Garrisons Compromised . | . . Overloaded Fab Kills . | . . Fab Network Shutdowns . | . . Hacking | -11 -10 --------- Run | Scr Mat Machines Accessed . | . . Terminals . | . . Fabricators . | . . Repair Stations . | . . Recycling Units . | . . Scanalyzers . | . . Garrison Access . | . . Total Hacks . | . . Successful . | . . Failed . | . . Catastrophic . | . . Database Lockouts . | . . Manual . | . . Terminals . | . . Fabricators . | . . Repair Stations . | . . Recycling Units . | . . Scanalyzers . | . . Garrison Access . | . . Terminal Hacks . | . . Fabricator Hacks . | . . Repair Station Hacks . | . . Recycling Unit Hacks . | . . Scanalyzer . | . . Garrison Access Hacks . | . . Unauthorized Hacks . | . . Terminals . | . . Fabricators . | . . Repair Stations . | . . Recycling Units . | . . Scanalyzers . | . . Garrison Access . | . . Data Cores Recovered . | . . Used . | . . Hacking Detections . | . . Full Trace Events . | . . Feedback Events . | . . Feedback Blocked . | . . Robot Schematics Acquired . | . . Robots Built . | . . Matter . | . . Time . | . . Total Robot Build Rating . | . . Part Schematics Acquired . | . . Parts Built . | . . Matter . | . . Time . | . . Total Part Build Rating . | . . Parts Repaired . | . . Time . | . . Parts Recycled . | . . Recycled Matter . | . . Retrieved Matter . | . . Retrieved Components . | . . Parts Scanalyzed . | . . Part Schematics Acquired . | . . Parts Damaged . | . . Bothacking | -11 -10 ------------ Run | Scr Mat Used RIF Installer . | . . Robots Hacked . | . . Non-combat . | . . Combat . | . . Robot Hacks Applied . | . . Relay Couplers Released . | . . Robots Rewired . | . . Allies Hacked . | . . Hacks Repelled . | . . Allies | -11 -10 -------- Run | Scr Mat Total Allies . | . . Largest Group . | . . Highest-Rated Group . | . . Highest-Rated Ally . | . . Total Orders . | . . Ally Attacks . | . . Total Damage . | . . Kills . | . . Allies Corrupted . | . . Allies Melted . | . . Intel | -11 -10 ------- Run | Scr Mat Robot Analysis Total . | . . Derelict Logs Recovered . | . . Drone Launches . | . . Drone Recoveries . | . . Exploration | -11 -10 ------------- Run | Scr Mat Turns Passed 714 | 94 620 Spaces Moved 417 | 68 349 Core 2 | 2 . Treads . | . . Legs 415 | 66 349 Wheels . | . . Hover . | . . Flight . | . . Fastest Speed 50 | 50 120 Average Speed 120 | 117 121 Slowest Speed 150 | 120 150 Overloaded Moves . | . . Propulsion Burnouts . | . . Robots Hopped . | . . Cave-ins Triggered . | . . Exploration Rate (%) 24 | 4 45 Regions Visited 1 Branch Regions . Pre-discovered Areas . | . . Known Exits Taken . | . . Unknown Exits Taken 1 | 1 . Scrap Searched . | . . Spaces Dug . | . . Terrain Destroyed 2 | . 2 Melee . | . . Projectile . | . . AOE 2 | . 2 Actions | -11 -10 --------- Run | Scr Mat Total 535 | 79 456 Wait 21 | . 21 Move 416 | 67 349 Hop . | . . Pick Up 14 | 6 8 Fast Attach 12 | 6 6 Attach 6 | . 6 Detach 1 | . 1 Swap 1 | . 1 Drop 6 | . 6 Fire 58 | . 58 Melee . | . . Ram . | . . Kick . | . . Crush . | . . Escape Stasis . | . . Rewire . | . . Trap . | . . Miscellaneous . | . . Route ------- -11/Scrapyard -10/Materials (discovered 1 exit: [*Mat]) History --------- Turn | Location | Event 6 | -11/Scrapyard | Discovered new exit (range 15) 95 | -11/Scrapyard | Entered Materials 273 | -10/Materials | Discovered new exit (range 5) 317 | -10/Materials | Build established: Mutant 362 | -10/Materials | Lost 3 parts (1p1n1w) 675 | -10/Materials | Lost 5 parts (1n4w) 687 | -10/Materials | Core integrity fell below 50% 699 | -10/Materials | Core integrity fell below 20% 715 | -10/Materials | Destroyed by G-47 Trooper with Particle Gun Last Messages --------------- 00660_ W-16 Scout sends out distress signal. 00660_ U-05 Engineer lays Concrete. 00661_ G-34 Mercenary destroyed. 00661_ U-05 Engineer lays Concrete. 00664_ Acquired 26 matter. 00665_ U-05 Engineer lays Concrete. 00667_ Acquired Aluminum Leg. 00667_ U-05 Engineer lays Concrete. 00670_ Dropped Aluminum Leg. 00670_ U-05 Engineer lays Concrete. 00673_ Acquired Aluminum Leg. 00674_ U-05 Engineer lays Concrete. 00676_ Dropped Wheel. 00678_ Dropped Lgt. Treads. 00679_ Acquired 70 matter. 00684_ Acquired Aluminum Leg. 00698_ R-06 Scavenger collects Ion Engine. 00701_ R-06 Scavenger collects Imp. Heat Sink. 00703_ Aluminum Leg destroyed. 00706_ R-06 Scavenger collects Med. Matter Pod. Map ----- +----------------------------------------------------+ | ?????????????????????????????????????????????????? | | ?????????????????????????????????????????????????? | | ?????????????????????????????????????????????????? | | ?????????????????????????????????????????????????? | | ?????????????????????????????????????????????????? | | ?????????????????????????????????????????????????? | | ???????????????????????????????????????????????? | | ???????????????????????????????????????????????? | | ???????????????????????????????????????????????? | | ???????????????????????????#????????????????????? | | ?????????????????????????? ????????????????????? | | ?????????????????????????? ????????????????????? | | ?????????????????????????? !????????????????????? | | ??????????????????????????! ????????????????????? | | ?????????????????????????? ????????????????????? | | ?????????????????????????? ????????????????????? | | ????????????????????????###+####? ?????????????? | | ????????????????????????# ## ?????????##### | | ????????????????????????# ## #????????# | | ????????????????????????# """## #???????## """ | | ????????????????????????# """## #???????#+ """ | | ????????????????????????#!% """## #???????## """ | | ????????????????????????# g ## #????????# """ | | ????????????????????????# g ## #????????# | | ????????????????????????#* ## #????????# =! | | ????????????????????????#@ ## #?######?# =! | | ????????????????????????# ! ==## ### !! ### =! | | ????????????????????????# u==## ##! !## | | ????????????????????????####/#### ##! !## | | ??????????????????######## ## ## ####+# | | ?????????????? o | | ?????????????? ^^ | | ?????????????? ^ % | | ??????????????############ ###+###########+### | | ?????????????????????????####### #???# | | ???????????????????????????????# """ #???# """ | | ???????????????????????????????# "T #???# """ | | ???????????????????????????????# """ #???# """ | | ???????????????????????????????# #???# | | ???????????????????????????????# #???# """ | | ???????????????????????????????########???# """ | | ??????????????????????????????????????????# """ | | ??????????????????????????????????????????# | | ??????????????????????????????????????????######## | | | | | | | | | | | | | +----------------------------------------------------+ Best States ------------- Heat Dissipation 25 Energy Generation 10 Energy Capacity 250 Matter Stores 449 Matter Capacity 450 Sight Range 16 Terrain Scan Density 10 Evasion (%) 40 Item Schematics ----------------- None Robot Schematics ------------------ None Fabricated ------------ Nothing Alien Tech Used ----------------- None Achievements -------------- None Challenges ------------ None Game ------ Seed TitaniumAluminumBoosters Manual? 0 Play Time 00:10:05 Cumulative 15.8 hours Start 2020.06.02 @ 09:31:07 End 2020.06.02 @ 09:40:00 Sessions 1 Manual Loads 0 Difficulty Rogue Special Mode None Game No. 29 Rogue 29 Adventurer 0 Explorer 0 Win Type - Total 0 Types 0/0/0/0/0/0/0 Lore% 10 Gallery% 14 Achievement% 12 Wizard Run 0 Options --------- ASCII 1 Keyboard 1 Movement Vi Keybinds 0 Fullscreen 1 Font 18/Terminus Map View 76x50 Tactical HUD 1 Map Filters NONE Filters NONE Steam 1 RUN: 67a4deed-ee6b-4e29-95ac-17d57117918c